Cogmind - Beta 16.1 @@@ ROGUE MODE // 2026.06.22 @ 23:41:18 Player: Godsword Result: Self-destructed Performance ------------- Evolutions (8) 4000 Regions Visited (15) 3000 Robots Destroyed (58) 290 Value Destroyed (1559) 1559 Prototype IDs (11) 220 Alien Tech Used (0) 0 Bonus (463) 463 TOTAL SCORE: 9532 Bonus ------- Follower Combat Kills 163 Met Data Miner 300 Cogmind --------- Core Integrity 1450/1450 Matter 177/300 Energy 450/450 System Corruption 1% Temperature Cool (0) Movement Flying (107) Ox1 Location -2/Research Parts ------- > --- POWER (2) -------- Light Nuclear Core Light Quantum Reactor > --- PROPULSION (6) --- VTOL Module VTOL Module VTOL Module Q-thruster > --- UTILITY (11) ----- Compact Battery Advanced Weight Redist. System Enhanced Optical Array Targeting Computer Targeting Computer Improved Targeting Computer Improved Targeting Computer Improved Melee Analysis Suite Advanced Transmission Jammer Advanced ECM Suite > --- WEAPON (4) ------- Enhanced Force Lance > --- INVENTORY (5) ---- Light Antimatter Reactor Micro Antimatter Reactor Advanced Weight Redist. System Spear Peak State ------------ > --- POWER ------------ Micro Antimatter Reactor Light Quantum Reactor > --- PROPULSION ------- VTOL Module VTOL Module VTOL Module VTOL Module Xenon Bombardment Thruster Q-thruster > --- UTILITY ---------- Compact Battery Advanced Weight Redist. System Enhanced Optical Array Targeting Computer Targeting Computer Improved Targeting Computer Improved Targeting Computer Improved Melee Analysis Suite Advanced Transmission Jammer Advanced ECM Suite > --- WEAPON ----------- Enhanced Force Lance > --- INVENTORY -------- Light Nuclear Core Light Antimatter Reactor Spear [Rating: 78] Favorites ----------- Power Light Nuclear Core Engine Light Ion Engine Power Core Light Nuclear Core Reactor Antimatter Reactor Propulsion VTOL Module Wheel Compact Wheel Hover Unit Backup Propulsion I Flight Unit VTOL Module Utility Targeting Computer Device Terrain Scanner Storage Compact Battery Processor Targeting Computer Protection Light Armor Plating Weapon Mini Grenade Launcher Launcher Mini Grenade Launcher Piercing Weapon Spear Build | -11 -10 -10 -9 -9 -8 -7 -6 -6 -6 -6 -5 -5 -4 -3 -2 ------- Run | Yrd Mat Min Mat Min Mat Fac Fac Low Low Dat Pro Fac Fac Res Res Slots Evolved 16 | . . . 2 . 2 2 2 . . . . 2 2 2 2 Power 1 | . . . . . . . . . . . . . . . 1 Propulsion 4 | . . . . . 1 1 . . . . . . . 1 1 Utility 9 | . . . 1 . 1 . 2 . . . . 2 2 1 . Weapon 2 | . . . 1 . . 1 . . . . . . . . . Parts Attached 59 | . 2 . 7 . 12 1 2 5 1 . 5 7 10 4 3 Power 10 | . . . 1 . 2 . . 2 . . 1 . 1 1 2 Engine 1 | . . . 1 . . . . . . . . . . . . Core 5 | . . . . . 2 . . 2 . . 1 . . . . Reactor 4 | . . . . . . . . . . . . . 1 1 2 Propulsion 17 | . . . 2 . 1 1 . 1 1 . 3 3 4 1 . Treads . | . . . . . . . . . . . . . . . . Leg . | . . . . . . . . . . . . . . . . Wheel 2 | . . . 2 . . . . . . . . . . . . Hover 5 | . . . . . . 1 . . . . 2 1 1 . . Flight 10 | . . . . . 1 . . 1 1 . 1 2 3 1 . Utility 25 | . . . 3 . 7 . 2 2 . . . 4 4 2 1 Device 7 | . . . 2 . . . . . . . . 1 1 2 1 Storage 3 | . . . . . 1 . . . . . . . 2 . . Processor 13 | . . . 1 . 4 . 2 2 . . . 3 1 . . Hackware . | . . . . . . . . . . . . . . . . Protection 2 | . . . . . 2 . . . . . . . . . . Artifact . | . . . . . . . . . . . . . . . . Weapon 7 | . 2 . 1 . 2 . . . . . 1 . 1 . . Energy Gun . | . . . . . . . . . . . . . . . . Energy Cannon . | . . . . . . . . . . . . . . . . Ballistic Gun . | . . . . . . . . . . . . . . . . Ballistic Cannon . | . . . . . . . . . . . . . . . . Launcher 5 | . 2 . 1 . 2 . . . . . . . . . . Special Weapon . | . . . . . . . . . . . . . . . . Impact Weapon . | . . . . . . . . . . . . . . . . Slashing Weapon . | . . . . . . . . . . . . . . . . Piercing Weapon 2 | . . . . . . . . . . . 1 . 1 . . Special Melee Weapon . | . . . . . . . . . . . . . . . . Unidentified Prototypes . | . . . . . . . . . . . . . . . . Parts Lost 22 | . . . . 1 3 . 1 2 . . 3 3 7 . 2 Power . | . . . . . . . . . . . . . . . . Propulsion 9 | . . . . . 1 . 1 1 . . 1 1 2 . 2 Utility 9 | . . . . 1 1 . . 1 . . . 2 4 . . Weapon 4 | . . . . . 1 . . . . . 2 . 1 . . Highest Loss Streak 6 | . . . . 1 3 . 1 1 . . 1 3 6 . 2 To Critical Strikes . | . . . . . . . . . . . . . . . . Average Backups 4 | . 1 2 1 2 4 4 4 5 5 5 4 2 3 2 3 Power . | . . . . . 1 . . . 1 1 . . . 1 1 Propulsion . | . . . . . . . . . . . . . 1 . . Utility 2 | . . . . . 2 4 3 4 4 4 4 1 . . . Weapon . | . 1 2 1 1 . . . . . . . . . 1 1 Tool/Special . | . . . . . . . . . . . . . . . . Unused Backups 4 | . . . . . 1 . 2 . . . . . . . 1 Power 1 | . . . . . 1 . . . . . . . . . . Propulsion 1 | . . . . . . . 1 . . . . . . . . Utility 1 | . . . . . . . . . . . . . . . 1 Weapon 1 | . . . . . . . 1 . . . . . . . . Tool/Special . | . . . . . . . . . . . . . . . . Average Slot Usage (%) 71 | . 14 28 63 89 83 89 88 61 64 66 62 66 71 71 80 Core 2 | . . . . . 6 7 5 . . . 1 1 3 2 3 Wheel 2 | . . . 13 22 12 . . . . . . . . . . Hover 4 | . . . . . 3 20 17 . . . 2 2 5 . . Flight 4 | . . . . . 1 . . 1 4 6 5 6 9 23 26 Device 2 | . . . 10 12 5 . . . . . . 1 7 4 11 Storage 1 | . . . . . 3 . . . . . . . 3 4 4 Processor 32 | . . . 4 11 19 30 39 39 40 40 40 41 31 28 26 Launcher 17 | . 14 28 33 33 27 30 25 20 20 20 10 5 2 . . Piercing Weapon 1 | . . . . . . . . . . . 1 5 5 4 4 Peak Build Rating 78 | . 4 4 13 13 18 23 26 23 22 22 34 39 57 63 78 Average Rating 24 | . 3 4 9 12 15 22 23 18 21 22 22 27 43 51 72 On Entrance 19 | . . 4 4 13 12 17 23 14 19 22 22 21 39 38 63 Avg Prop Armor Cover (%) 7 | . . . . . 3 . . . . . 4 10 7 . . Naked Turns 3 | . 3 . . . . . . . . . . . . . . Heaviest Build 33 | . 2 2 8 8 15 9 9 8 3 3 7 9 26 25 33 Greatest Support 39 | 3 3 3 32 32 32 21 21 4 5 5 22 10 28 26 39 Greatest Overweight (x) 5 | . . . . . . . . 1 . . . . 5 . . Average Overweight (x) . | . . . . . . . . . . . . . . . . Largest Inventory Capacity 5 | 5 5 5 5 5 5 5 5 5 5 5 5 5 5 5 5 Average Capacity 5 | 5 5 5 5 5 5 5 5 5 5 5 5 5 5 5 5 Most Carried 5 | . 2 2 1 3 5 5 5 5 5 5 5 4 4 4 4 Average Carried 4 | . 1 2 1 2 4 4 4 4 5 5 4 2 3 2 3 Final Capacity 5 | 5 5 5 5 5 5 5 5 5 5 5 5 5 5 5 5 Final Carried 5 | . 2 2 1 3 5 5 5 5 5 5 5 1 3 4 4 Class Distribution -------------------- 54% | Bomber 21% | Mutant 10% | Scavenger-Sprinter 5% | Skirmisher 4% | Scavenger-Skirmisher Dominant Class ---------------- Mutant | -10/Mines Bomber | -9/Materials Skirmisher | -9/Mines Bomber | -8/Materials Bomber | -7/Factory Bomber | -6/Factory Bomber | -6/Lower Caves Bomber | -6/Lower Caves Bomber | -6/Data Miner Mutant | -5/Proximity Caves Mutant | -5/Factory Mutant | -4/Factory Scavenger-Sprinter | -3/Research Scavenger-Sprinter | -2/Research Resources | -11 -10 -10 -9 -9 -8 -7 -6 -6 -6 -6 -5 -5 -4 -3 -2 ----------- Run | Yrd Mat Min Mat Min Mat Fac Fac Low Low Dat Pro Fac Fac Res Res Matter Collected 1569 | 63 . 55 88 54 237 22 . 271 160 . 243 17 163 66 130 Remotely . | . . . . . . . . . . . . . . . . Salvage Created 899 | . . 55 49 . 173 22 . 44 108 . 152 67 163 66 . Parts 90 | . . . 12 . 20 2 . 6 9 . 17 5 12 7 . Haulers Intercepted . | . . . . . . . . . . . . . . . . Recyclers Shooed . | . . . . . . . . . . . . . . . . Parts Field Recycled . | . . . . . . . . . . . . . . . . Retrieved Matter . | . . . . . . . . . . . . . . . . Parts Self-Destructed 19 | . . . . . . . . 3 8 . 8 . . . . Prevented . | . . . . . . . . . . . . . . . . Parts Restored . | . . . . . . . . . . . . . . . . Kills | -11 -10 -10 -9 -9 -8 -7 -6 -6 -6 -6 -5 -5 -4 -3 -2 ------- Run | Yrd Mat Min Mat Min Mat Fac Fac Low Low Dat Pro Fac Fac Res Res Combat Hostiles Destroyed 40 | . . 2 1 . 4 . . 4 6 . 14 5 3 1 . Melee 4 | . . . . . . . . . . . . . 3 1 . AOE 36 | . . 2 1 . 4 . . 4 6 . 14 5 . . . Classes Destroyed 11 | . . 1 1 . 6 . . 1 1 . 1 . . . . Worker 7 | . . . . . 3 . . . . . . . 4 . . Builder 6 | . . . 4 . 2 . . . . . . . . . . Mechanic 1 | . . . . . 1 . . . . . . . . . . Operator 1 | . . . . . 1 . . . . . . . . . . Drone 2 | . . . . . . . . . . . 2 . . . . Watcher 3 | . . . . . 1 1 . . . . . . 1 . . Swarmer 26 | . . . . . . . . 4 3 . 11 5 3 . . Grunt 5 | . . 2 1 . . . . . 2 . . . . . . Sentry 1 | . . . . . 1 . . . . . . . . . . Hunter 3 | . . . . . 3 . . . . . . . . . . Programmer 3 | . . . . . . . . . 1 . 1 . . 1 . Best Kill Streak 7 | . . 2 5 . 6 1 . 4 3 . 7 5 3 1 . Combat Bots Only 7 | . . 2 1 . 3 . . 4 3 . 7 5 3 1 . Max Kills in Single Turn 4 | . . 2 4 . 3 1 . 4 3 . 3 3 1 1 . Gunslinging . | . . . . . . . . . . . . . . . . Exploded 4 | . . 2 1 . 1 . . 4 3 . 3 3 . . . Melee 1 | . . . . . . . . . . . . . 1 1 . Uniques/NPCs Destroyed . | . . . . . . . . . . . . . . . . Combat | -11 -10 -10 -9 -9 -8 -7 -6 -6 -6 -6 -5 -5 -4 -3 -2 -------- Run | Yrd Mat Min Mat Min Mat Fac Fac Low Low Dat Pro Fac Fac Res Res Hostile Shots Fired 260 | . . . 9 3 20 . 27 67 8 . 36 15 42 24 9 Missed 118 | . . . 1 . 6 . 14 41 4 . 15 11 10 12 4 Hits 142 | . . . 8 3 14 . 13 26 4 . 21 4 32 12 5 Projectile 142 | . . . 8 3 14 . 13 26 4 . 21 4 32 12 5 Critical Strikes 2 | . . . 1 . . . . . . . . . . 1 . Damage Taken 2088 | . . 45 122 27 270 24 94 204 99 . 318 83 544 172 86 Core 875 | . . 45 49 10 58 . 37 128 76 . 221 41 150 60 . Absorbed by Shields . | . . . . . . . . . . . . . . . . Core Remaining (%) 86 | 100 . 82 . 85 89 100 . . . . 45 95 86 95 . Volleys Fired 43 | . . 1 2 . 8 1 1 3 5 . 18 3 1 . . Largest 4 | . . 2 3 . 3 4 1 3 3 . 3 1 1 . . Hottest 120 | . . 60 90 . 90 120 30 90 90 . 90 30 30 . . Shots Fired 83 | . . 2 6 . 24 4 1 5 15 . 22 3 1 . . Gun . | . . . . . . . . . . . . . . . . Cannon . | . . . . . . . . . . . . . . . . Launcher 83 | . . 2 6 . 24 4 1 5 15 . 22 3 1 . . Special . | . . . . . . . . . . . . . . . . Kinetic . | . . . . . . . . . . . . . . . . Thermal . | . . . . . . . . . . . . . . . . Explosive 83 | . . 2 6 . 24 4 1 5 15 . 22 3 1 . . Electromagnetic . | . . . . . . . . . . . . . . . . Robot Hit Streak 9 | . . 2 . . 9 . . 3 4 . 3 6 7 . . Robot Miss Streak 2 | . . . . . 2 . . . 1 . 2 . . . . Penetration Max . | . . . . . . . . . . . . . . . . Secondary Targets . | . . . . . . . . . . . . . . . . Shots Hit Robots 48 | . . 2 . . 12 . . 3 6 . 3 3 14 2 3 Core Hits 86 | . . 4 3 . 19 1 1 6 13 . 21 10 7 1 . Critical Kills . | . . . . . . . . . . . . . . . . Critical Parts Destroyed . | . . . . . . . . . . . . . . . . Critical Strikes 1 | . . . . . . . . . . . . . 1 . . Impale 1 | . . . . . . . . . . . . . 1 . . Melee Attacks 45 | . . . . . . . . . . . . 6 25 9 5 Impact . | . . . . . . . . . . . . . . . . Slashing . | . . . . . . . . . . . . . . . . Piercing 45 | . . . . . . . . . . . . 6 25 9 5 Sneak Attacks 4 | . . . . . . . . . . . . . 4 . . Combat Hostiles . | . . . . . . . . . . . . . . . . Follow-up Attacks . | . . . . . . . . . . . . . . . . Damage Inflicted 5221 | . . 171 543 . 830 45 49 360 608 . 981 450 818 187 179 Guns . | . . . . . . . . . . . . . . . . Cannons . | . . . . . . . . . . . . . . . . Explosions 4223 | . . 171 543 . 830 45 47 360 608 . 981 450 188 . . Melee 996 | . . . . . . . . . . . . . 630 187 179 Ramming 2 | . . . . . . . 2 . . . . . . . . Kinetic . | . . . . . . . . . . . . . . . . Thermal . | . . . . . . . . . . . . . . . . Explosive 4223 | . . 171 543 . 830 45 47 360 608 . 981 450 188 . . Electromagnetic . | . . . . . . . . . . . . . . . . Impact . | . . . . . . . . . . . . . . . . Slashing . | . . . . . . . . . . . . . . . . Piercing 996 | . . . . . . . . . . . . . 630 187 179 Highest Corruption 2 | . . . . . 2 1 . . . . 1 . . . 1 Average Corruption 1 | . . . . . 2 1 . . . . 1 . . . 1 Corruption Purged . | . . . . . . . . . . . . . . . . Corruption Blocked . | . . . . . . . . . . . . . . . . Effects 4 | . . . . . 2 . . . . . 2 . . . . Message Errors 1 | . . . . . 1 . . . . . . . . . . Heat Flow Errors 1 | . . . . . . . . . . . 1 . . . . Parts Rejected 1 | . . . . . 1 . . . . . . . . . . Weapon Failures 1 | . . . . . . . . . . . 1 . . . . Overload Shots . | . . . . . . . . . . . . . . . . Overflow Damage 376 | . . . 85 . 23 . . 2 2 . 77 1 67 30 89 Projectiles . | . . . . . . . . . . . . . . . . Explosions 215 | . . . 85 . 23 . . 2 2 . 77 1 25 . . Melee 161 | . . . . . . . . . . . . . 42 30 89 Knockbacks . | . . . . . . . . . . . . . . . . Impact . | . . . . . . . . . . . . . . . . Kinetic . | . . . . . . . . . . . . . . . . Secondary . | . . . . . . . . . . . . . . . . Self-Inflicted Damage 251 | . . 46 . . 50 . 1 25 40 . 76 13 . . . Shots 12 | . . 2 . . 2 . . 1 2 . 3 2 . . . Rammed 1 | . . . . . . . 1 . . . . . . . . Targets Rammed 1 | . . . . . . . 1 . . . . . . . . Kicked . | . . . . . . . . . . . . . . . . Crushed . | . . . . . . . . . . . . . . . . Highest Temperature 221 | . . . 6 . 66 48 . 5 3 . 221 . . . 90 Average Temperature 33 | . . . 4 . 25 24 . 5 3 . 121 . . . 31 Received Heat Transfer 192 | . . . 87 . . . 24 36 9 . 9 9 18 . . Siege Activations . | . . . . . . . . . . . . . . . . Martial Activations . | . . . . . . . . . . . . . . . . Shielding Activations . | . . . . . . . . . . . . . . . . Robots Disrupted . | . . . . . . . . . . . . . . . . Combat Hostiles . | . . . . . . . . . . . . . . . . Robots Corrupted . | . . . . . . . . . . . . . . . . Combat Hostiles . | . . . . . . . . . . . . . . . . Parts Fried . | . . . . . . . . . . . . . . . . Impact Corruptions . | . . . . . . . . . . . . . . . . Robots Melted . | . . . . . . . . . . . . . . . . Combat Hostiles . | . . . . . . . . . . . . . . . . Parts Melted . | . . . . . . . . . . . . . . . . Heat Transferred . | . . . . . . . . . . . . . . . . Parts Sabotaged . | . . . . . . . . . . . . . . . . Parts Stolen . | . . . . . . . . . . . . . . . . Parts Stripped . | . . . . . . . . . . . . . . . . Power Chain Reactions . | . . . . . . . . . . . . . . . . Alert | -11 -10 -10 -9 -9 -8 -7 -6 -6 -6 -6 -5 -5 -4 -3 -2 ------- Run | Yrd Mat Min Mat Min Mat Fac Fac Low Low Dat Pro Fac Fac Res Res Maximum Alert Level 1 | . . . . . 1 . . . . . . 1 . . . Low Security (%) 84 | 100 100 100 100 100 82 100 100 . . . . . 100 100 100 Level 1 15 | . . . . . 17 . . . . . . 100 . . . Level 2 . | . . . . . . . . . . . . . . . . Level 3 . | . . . . . . . . . . . . . . . . Level 4 . | . . . . . . . . . . . . . . . . Level 5 . | . . . . . . . . . . . . . . . . High Security . | . . . . . . . . . . . . . . . . Max Security . | . . . . . . . . . . . . . . . . Peak Influence 369 | . . 62 121 110 248 125 46 . . . . 369 199 137 84 Initial 234 | . . . 24 39 27 112 46 . . . . 234 163 93 71 Average 113 | . . 62 60 90 99 105 10 . . . . 298 166 112 69 Influence Increases 2027 | . . 62 127 81 456 43 11 120 155 . 295 371 196 74 36 Destroy 0b10 Robot/C 900 | . . 40 40 60 140 . . 80 120 . 240 100 60 20 . Destroy 0b10 Robot/NC 100 | . . . 20 . 40 5 . . . . 10 . 25 . . Destroy Leader 196 | . . 10 10 10 72 2 . 10 20 . 30 10 12 10 . Allied During Kill 27 | . . . 8 11 8 . . . . . . . . . . Successful Hack 43 | . . . . . 14 . 5 . . . . . 24 . . Disable Machine 90 | . . . 30 . 30 15 . . . . . 15 . . . Destroy Structure 251 | . . 12 19 . 107 21 6 . . . . 36 30 14 6 Advance Influence 150 | . . . . . . . . . . . . 150 . . . Partial Spotted 75 | . . . . . . . . . . . . . 15 30 30 Lose Combat Pursuer 195 | . . . . . 45 . . 30 15 . 15 60 30 . . Influence Decreases 1970 | . . . 88 112 278 196 106 120 120 35 160 171 352 126 106 Entered New Map 728 | . . . 38 62 43 136 49 . . 35 . 51 172 86 56 Time Decay 967 | . . . 50 40 130 60 57 100 120 . 140 90 110 40 30 Lost Part 200 | . . . . 10 30 . . 20 . . 20 30 70 . 20 Lost Ally 40 | . . . . . 40 . . . . . . . . . . Purge Threat 35 | . . . . . 35 . . . . . . . . . . Squads Dispatched 20 | . . . . . 3 . 2 . . . . 5 4 3 3 Investigation 15 | . . . . . 3 . 2 . . . . 3 4 1 2 Extermination 1 | . . . . . . . . . . . . 1 . . . Reinforcement 4 | . . . . . . . . . . . . 1 . 2 1 Assault . | . . . . . . . . . . . . . . . . Garrison . | . . . . . . . . . . . . . . . . Intercept . | . . . . . . . . . . . . . . . . Searches Triggered . | . . . . . . . . . . . . . . . . Data Miner Redirects 2 | . . . . . . . . . . . . . 2 . . Construction Impeded . | . . . . . . . . . . . . . . . . Haulers Reinforced 1 | . . . . . . . . . . . . 1 . . . Active Scanning Responses . | . . . . . . . . . . . . . . . . Cargo Convoy Interrupts . | . . . . . . . . . . . . . . . . Stealth | -11 -10 -10 -9 -9 -8 -7 -6 -6 -6 -6 -5 -5 -4 -3 -2 --------- Run | Yrd Mat Min Mat Min Mat Fac Fac Low Low Dat Pro Fac Fac Res Res Distress Signals 2 | . . . . . . . . . . . . . 1 1 . Communications Jammed . | . . . . . . . . . . . . . . . . Distress Signals . | . . . . . . . . . . . . . . . . Times Spotted 73 | . . . 2 3 10 2 2 6 5 . 14 9 6 10 4 Peak Tracking Total 8 | . . . 2 3 4 1 1 5 4 . 6 6 4 8 2 Tactical Retreats 9 | . . . . . 2 . . 2 1 . 1 1 2 . . Traps | -11 -10 -10 -9 -9 -8 -7 -6 -6 -6 -6 -5 -5 -4 -3 -2 ------- Run | Yrd Mat Min Mat Min Mat Fac Fac Low Low Dat Pro Fac Fac Res Res Traps Triggered 4 | . . . . . 2 1 1 . . . . . . . . Indirectly . | . . . . . . . . . . . . . . . . Trap Hack Attempts . | . . . . . . . . . . . . . . . . Triggered . | . . . . . . . . . . . . . . . . Disarmed . | . . . . . . . . . . . . . . . . Reprogrammed . | . . . . . . . . . . . . . . . . Reused . | . . . . . . . . . . . . . . . . Traps Extracted . | . . . . . . . . . . . . . . . . Installed . | . . . . . . . . . . . . . . . . Triggered . | . . . . . . . . . . . . . . . . Machines | -11 -10 -10 -9 -9 -8 -7 -6 -6 -6 -6 -5 -5 -4 -3 -2 ---------- Run | Yrd Mat Min Mat Min Mat Fac Fac Low Low Dat Pro Fac Fac Res Res Machines Disabled 6 | . . . 2 . 2 1 . . . . . 1 . . . Max in Single Turn 2 | . . . 1 . 2 1 . . . . . 1 . . . Machines Repaired . | . . . . . . . . . . . . . . . . Machines Dismantled . | . . . . . . . . . . . . . . . . Machines Sabotaged . | . . . . . . . . . . . . . . . . Overloaded Fab Kills . | . . . . . . . . . . . . . . . . Hacking | -11 -10 -10 -9 -9 -8 -7 -6 -6 -6 -6 -5 -5 -4 -3 -2 --------- Run | Yrd Mat Min Mat Min Mat Fac Fac Low Low Dat Pro Fac Fac Res Res Machines Accessed 37 | . . . . . 5 1 6 2 1 4 . 7 6 2 3 Terminals 16 | . . . . . 4 1 3 1 . . . 3 1 1 2 Fabricators 5 | . . . . . . . 2 . . . . 2 1 . . Repair Stations 4 | . . . . . 1 . 1 . . . . . 2 . . Recycling Units 5 | . . . . . . . . . . . . 2 2 . 1 Scanalyzers . | . . . . . . . . . . . . . . . . Garrison Access 1 | . . . . . . . . . . . . . . 1 . Total Hacks 101 | . . . . . 11 1 9 2 1 31 . 15 16 6 9 Successful 47 | . . . . . 4 . 2 2 1 31 . 2 4 1 . Failed 54 | . . . . . 7 1 7 . . . . 13 12 5 9 Catastrophic 22 | . . . . . 2 1 4 . . . . 6 5 2 2 Database Lockouts . | . . . . . . . . . . . . . . . . Manual 13 | . . . . . . 1 2 . . . . 3 . 2 5 Terminals 35 | . . . . . 9 1 5 1 . . . 5 4 3 7 Fabricators 12 | . . . . . . . 3 . . . . 7 2 . . Repair Stations 8 | . . . . . 2 . 1 . . . . . 5 . . Recycling Units 10 | . . . . . . . . . . . . 3 5 . 2 Scanalyzers . | . . . . . . . . . . . . . . . . Garrison Access 3 | . . . . . . . . . . . . . . 3 . Terminal Hacks 41 | . . . . . 3 . 1 2 1 31 . . 2 1 . Record 13 | . . . . . 1 . . 1 . 11 . . . . . Part Schematic 9 | . . . . . . . . . . 9 . . . . . Robot Schematic 8 | . . . . . . . . . . 8 . . . . . Prototype ID Bank 3 | . . . . . . . . . . 3 . . . . . Open Door 2 | . . . . . . . . 1 1 . . . . . . Open DSF 1 | . . . . . . . 1 . . . . . . . . Level Access Points 2 | . . . . . 1 . . . . . . . 1 . . Alert Level 1 | . . . . . . . . . . . . . . 1 . Unreport Threat 1 | . . . . . 1 . . . . . . . . . . Recall Investigation 1 | . . . . . . . . . . . . . 1 . . Fabricator Hacks 3 | . . . . . . . 1 . . . . 2 . . . Network Status 1 | . . . . . . . 1 . . . . . . . . Load Schematic 2 | . . . . . . . . . . . . 2 . . . Repair Station Hacks 2 | . . . . . 1 . . . . . . . 1 . . Refit 2 | . . . . . 1 . . . . . . . 1 . . Recycling Unit Hacks 1 | . . . . . . . . . . . . . 1 . . Retrieve Components 1 | . . . . . . . . . . . . . 1 . . Scanalyzer . | . . . . . . . . . . . . . . . . Garrison Access Hacks . | . . . . . . . . . . . . . . . . Unauthorized Hacks . | . . . . . . . . . . . . . . . . Terminals . | . . . . . . . . . . . . . . . . Fabricators . | . . . . . . . . . . . . . . . . Repair Stations . | . . . . . . . . . . . . . . . . Recycling Units . | . . . . . . . . . . . . . . . . Scanalyzers . | . . . . . . . . . . . . . . . . Garrison Access . | . . . . . . . . . . . . . . . . Data Cores Recovered . | . . . . . . . . . . . . . . . . Used . | . . . . . . . . . . . . . . . . Hacking Detections 27 | . . . . . 4 1 4 . . . . 7 6 2 3 Full Trace Events 14 | . . . . . 2 . 2 . . . . 3 4 1 2 Feedback Events 1 | . . . . . . . . . . . . . . . 1 Corruption 1 | . . . . . . . . . . . . . . . 1 Feedback Blocked . | . . . . . . . . . . . . . . . . Robot Schematics Acquired 8 | . . . . . . . . . . 8 . . . . . Robots Built . | . . . . . . . . . . . . . . . . Authchips . | . . . . . . . . . . . . . . . . Time . | . . . . . . . . . . . . . . . . Total Robot Build Rating . | . . . . . . . . . . . . . . . . Part Schematics Acquired 9 | . . . . . . . . . . 9 . . . . . Parts Built . | . . . . . . . . . . . . . . . . Authchips . | . . . . . . . . . . . . . . . . Time . | . . . . . . . . . . . . . . . . Total Part Build Rating . | . . . . . . . . . . . . . . . . Part Studies Acquired . | . . . . . . . . . . . . . . . . Parts Repaired . | . . . . . . . . . . . . . . . . Time . | . . . . . . . . . . . . . . . . Parts Recycled . | . . . . . . . . . . . . . . . . Recycled Matter . | . . . . . . . . . . . . . . . . Retrieved Matter . | . . . . . . . . . . . . . . . . Retrieved Components 2 | . . . . . . . . . . . . . 2 . . Parts Scanalyzed . | . . . . . . . . . . . . . . . . Part Schematics Acquired . | . . . . . . . . . . . . . . . . Parts Damaged . | . . . . . . . . . . . . . . . . Bothacking | -11 -10 -10 -9 -9 -8 -7 -6 -6 -6 -6 -5 -5 -4 -3 -2 ------------ Run | Yrd Mat Min Mat Min Mat Fac Fac Low Low Dat Pro Fac Fac Res Res Used RIF Installer . | . . . . . . . . . . . . . . . . Robots Hacked . | . . . . . . . . . . . . . . . . Non-combat . | . . . . . . . . . . . . . . . . Combat . | . . . . . . . . . . . . . . . . Robot Hacks Applied . | . . . . . . . . . . . . . . . . Relay Couplers Released . | . . . . . . . . . . . . . . . . Fabnet Peak Effective % . | . . . . . . . . . . . . . . . . Robots Rewired . | . . . . . . . . . . . . . . . . Allies Hacked . | . . . . . . . . . . . . . . . . Hacks Repelled . | . . . . . . . . . . . . . . . . Allies | -11 -10 -10 -9 -9 -8 -7 -6 -6 -6 -6 -5 -5 -4 -3 -2 -------- Run | Yrd Mat Min Mat Min Mat Fac Fac Low Low Dat Pro Fac Fac Res Res Total Allies 3 | . . 3 . . . . . . . . . . . . . Largest Group 3 | . . 3 3 3 3 . . . . . . . . . . Highest-Rated Group 40 | . . 40 40 40 40 . . . . . . . . . . Highest-Rated Ally 16 | . . 16 16 16 16 . . . . . . . . . . Total Orders . | . . . . . . . . . . . . . . . . Ally Attacks 38 | . . . 8 6 24 . . . . . . . . . . Total Damage 432 | . . . 110 88 234 . . . . . . . . . . Kills 7 | . . . 1 3 3 . . . . . . . . . . Allies Corrupted . | . . . . . . . . . . . . . . . . Allies Melted . | . . . . . . . . . . . . . . . . Intel | -11 -10 -10 -9 -9 -8 -7 -6 -6 -6 -6 -5 -5 -4 -3 -2 ------- Run | Yrd Mat Min Mat Min Mat Fac Fac Low Low Dat Pro Fac Fac Res Res Active Infowar (turns) 1945 | . . . 61 88 179 . . 372 313 34 323 182 222 93 78 Optics 1617 | . . . . . . . . 372 313 34 323 182 222 93 78 Terrain 563 | . . . 40 88 179 . . . . . . 39 217 . . Seismic 62 | . . . 61 1 . . . . . . . . . . . Jamming 64 | . . . . . . . . . . . . . . 3 61 ECM 25 | . . . . . . . . . . . . . . 25 . Robot Analysis Total . | . . . . . . . . . . . . . . . . Derelict Logs Recovered 8 | . . . . 1 . . . 2 2 . 3 . . . . Drone Launches . | . . . . . . . . . . . . . . . . Drone Recoveries . | . . . . . . . . . . . . . . . . Exploration | -11 -10 -10 -9 -9 -8 -7 -6 -6 -6 -6 -5 -5 -4 -3 -2 ------------- Run | Yrd Mat Min Mat Min Mat Fac Fac Low Low Dat Pro Fac Fac Res Res Turns Passed 2565 | 10 16 13 104 88 296 135 253 405 313 34 323 182 222 93 78 Spaces Moved 4451 | 19 21 20 122 87 277 193 358 724 755 98 683 340 290 218 246 Core 965 | 19 21 20 73 . 79 . 33 522 183 . 7 3 5 . . Treads . | . . . . . . . . . . . . . . . . Legs . | . . . . . . . . . . . . . . . . Wheels 271 | . . . 49 87 135 . . . . . . . . . . Hover 741 | . . . . . 63 193 325 . . . 101 . 59 . . Flight 2474 | . . . . . . . . 202 572 98 575 337 226 218 246 Fastest Speed 21 | 50 50 50 50 100 50 65 50 35 35 35 35 34 26 24 21 Average Speed 46 | 50 50 50 70 100 80 66 64 46 38 35 38 34 42 24 21 Slowest Speed 435 | 50 50 50 100 100 100 76 80 115 50 35 60 50 435 25 21 Overloaded Moves . | . . . . . . . . . . . . . . . . Propulsion Burnouts . | . . . . . . . . . . . . . . . . Robots Hopped 2 | . . . . . . . . 1 . . . . . . 1 Potential Cave-ins . | . . . . . . . . . . . . . . . . Cave-ins Triggered . | . . . . . . . . . . . . . . . . Exploration Rate (%) 30 | 3 6 6 17 23 35 6 11 77 88 75 85 14 10 9 16 Regions Visited 15 Branch Regions 6 Pre-discovered Areas 2 | . . . . . . . . . . 1 1 . . . . Known Exits Taken 4 | . . . . . 1 . . 1 1 . . . 1 . . Unknown Exits Taken 11 | 1 1 1 1 1 . 1 1 . . 1 1 1 . 1 . Scrap Searched 6 | . . . . . . . . 1 2 . 3 . . . . Spaces Dug 47 | . . . . . . . . . . . 29 3 6 7 2 Terrain Destroyed 552 | . . 24 24 . 132 22 5 27 103 . 171 22 13 7 2 Melee 18 | . . . . . . . . . . . . 3 6 7 2 Projectile . | . . . . . . . . . . . . . . . . AOE 534 | . . 24 24 . 132 22 5 27 103 . 171 19 7 . . Terrain Rammed . | . . . . . . . . . . . . . . . . Walls Destroyed . | . . . . . . . . . . . . . . . . Machines Disabled . | . . . . . . . . . . . . . . . . Actions | -11 -10 -10 -9 -9 -8 -7 -6 -6 -6 -6 -5 -5 -4 -3 -2 --------- Run | Yrd Mat Min Mat Min Mat Fac Fac Low Low Dat Pro Fac Fac Res Res Total 4789 | 18 24 20 133 88 333 196 381 787 763 97 721 389 344 236 259 Wait 133 | . . . 3 . 14 . 12 54 3 . 11 33 1 . 2 Move 4432 | 18 20 19 121 86 276 192 357 721 754 97 682 339 289 217 244 Hop 2 | . . . . . . . . 1 . . . . . . 1 Pick Up 26 | . 2 . . 2 9 1 4 1 . . . . 4 2 1 Fast Attach 35 | . 2 . 6 . 5 1 . 2 1 . 5 4 6 2 1 Attach 21 | . . . 1 . 3 1 2 1 . . 1 4 5 1 2 Detach 7 | . . . . . 1 . . 1 . . 1 . 4 . . Swap 21 | . . . . . 6 . . 2 . . . . 5 5 3 Drop 23 | . . . . . 11 . 4 1 . . 3 . 4 . . Fire 43 | . . 1 2 . 8 1 1 3 5 . 18 3 1 . . Melee 45 | . . . . . . . . . . . . 6 25 9 5 Ram 1 | . . . . . . . 1 . . . . . . . . Kick . | . . . . . . . . . . . . . . . . Crush . | . . . . . . . . . . . . . . . . Escape Stasis . | . . . . . . . . . . . . . . . . Rewire . | . . . . . . . . . . . . . . . . Trap . | . . . . . . . . . . . . . . . . Miscellaneous . | . . . . . . . . . . . . . . . . Route ------- -11/Scrapyard -10/Materials -10/Mines -9/Materials -9/Mines -8/Materials (discovered 3 exits: *Fac x3) -7/Factory -6/Factory -6/Lower Caves -6/Lower Caves (discovered 2 exits: *Fac / *Dat) -6/Data Miner -5/Proximity Caves -5/Factory (discovered 3 exits: *Fac / *Upp x2) -4/Factory (discovered 4 exits: *Res x4) -3/Research -2/Research History --------- Turn | Location | Event 4 | -11/Scrapyard | Discovered new exit (range 14) 11 | -11/Scrapyard | Entered Materials 11 | -10/Materials | Discovered new exit (range 9) 27 | -10/Materials | Entered Mines 31 | -10/Mines | Met a Derelict bent on vengeance 31 | -10/Mines | Discovered new exit (range 10) 37 | -10/Mines | Assisted by bots powering up and referring to "LRC-V3" 40 | -10/Mines | Entered Materials 40 | -9/Materials | Accompanied by 3 allies 40 | -9/Materials | Evolved 2 slots: Utility x1, Weapon x1 97 | -9/Materials | Discovered new exit (range 9) 144 | -9/Materials | Entered Mines 144 | -9/Mines | Accompanied by 3 allies 193 | -9/Mines | Learned 2 Materials zone layouts 212 | -9/Mines | Discovered new exit (range 14) 232 | -9/Mines | Entered Materials 232 | -8/Materials | Accompanied by 3 allies 232 | -8/Materials | Evolved 2 slots: Propulsion x1, Utility x1 421 | -8/Materials | Lost 3 parts (1n1u1w) 498 | -8/Materials | Discovered new exit (range 16) 511 | -8/Materials | Identified exit to Factory 528 | -8/Materials | Entered Factory 528 | -7/Factory | Evolved 2 slots: Propulsion x1, Weapon x1 645 | -7/Factory | Discovered new exit (range 16) 663 | -7/Factory | Entered another Factory area 663 | -6/Factory | Evolved 2 slots: Utility x2 685 | -6/Factory | Build established: Bomber 769 | -6/Factory | Identified exit to DSF 908 | -6/Factory | Discovered new exit (range 6) 916 | -6/Factory | Entered Lower Caves 918 | -6/Lower Caves | Attracted the attention of an 0b10 checkpoint 945 | -6/Lower Caves | Learned Factory garrison access intel 947 | -6/Lower Caves | Identified exit to Lower Caves 1077 | -6/Lower Caves | Spotted B-75 Beast 1321 | -6/Lower Caves | Entered another Lower Caves area 1332 | -6/Lower Caves | Discovered new exit (range 13) 1336 | -6/Lower Caves | Learned Factory stockpile data 1372 | -6/Lower Caves | Identified exit to Data Miner 1377 | -6/Lower Caves | Encountered a Warlord checkpoint 1634 | -6/Lower Caves | Entered Data Miner 1634 | -6/Data Miner | Discovered new exit (range 6) 1642 | -6/Data Miner | Met Data Miner 1652 | -6/Data Miner | Acquired the access code to Warlord's prototype stash 1652 | -6/Data Miner | Learned location of Section 7 (-2) 1657 | -6/Data Miner | Received God Mode back door access code from Data Miner 1668 | -6/Data Miner | Entered Proximity Caves 1677 | -5/Proximity Caves | Learned location of 1 exit from Factory 1762 | -5/Proximity Caves | Destroyed 7 combat bots 1801 | -5/Proximity Caves | Spotted B-75 Beast 1813 | -5/Proximity Caves | Spotter reported a threat 1952 | -5/Proximity Caves | Discovered new exit (range 7) 1962 | -5/Proximity Caves | Learned Factory interactive machine intel 1987 | -5/Proximity Caves | Attracted the attention of an 0b10 checkpoint 1988 | -5/Proximity Caves | Core integrity fell below 50% 1991 | -5/Proximity Caves | Entered Factory 1991 | -5/Factory | Evolved 2 slots: Utility x2 1992 | -5/Factory | Identified exit to Upper Caves 1994 | -5/Factory | Loaded intel: 54 interactive machine locations 1995 | -5/Factory | Loaded intel: 4 garrison access locations 2085 | -5/Factory | Build established: Mutant 2086 | -5/Factory | Discovered exit to Upper Caves (range 13) 2090 | -5/Factory | Lost 3 parts (1n2u) 2172 | -5/Factory | Discovered new exit (range 5) 2173 | -5/Factory | Entered another Factory area 2173 | -4/Factory | Evolved 2 slots: Utility x2 2178 | -4/Factory | Noticed a derelict Sapper rigging charges 2269 | -4/Factory | Incoming investigation squad redirected 2307 | -4/Factory | Lost 6 parts (2n3u1w) 2330 | -4/Factory | Identified exit to Research 2346 | -4/Factory | Incoming investigation squad redirected 2395 | -4/Factory | Entered Research 2395 | -3/Research | Evolved 2 slots: Propulsion x1, Utility x1 2454 | -3/Research | Spotted B-86 Titan 2487 | -3/Research | Discovered new exit (range 8) 2488 | -3/Research | Entered another Research area 2488 | -2/Research | Evolved 2 slots: Power x1, Propulsion x1 2545 | -2/Research | Spotted B-90 Cyclops 2566 | -2/Research | Self-destructed Last Messages --------------- 02528_ Destroyed Imp. Hover Unit. 02535_ Acquired Adv. Weight Redist. System. 02547_ Connecting with Terminal... 02547_ ALERT: Suspicious activity at Terminal R006. Dispatching Investigation squad. 02547_ K-01 Serf cleans the Terminal. 02549_ O-32 Director: "IFF HANDSHAKE FAILED. SECURING TERMINAL." 02550_ Destroyed Imp. Hacking Suite. 02550_ Destroyed Lgt. Angular Momentum Engine. 02554_ Destroyed Gravmag System. 02558_ ALERT: Hostiles spotted, dispatching reinforcements to Terminal R010. 02558_ ALERT: All DSF locations entering lockdown mode. 02561_ Penetrated by Slug. 02564_ Slug penetrates Wall. 02564_ VTOL Module destroyed. 02565_ Slug penetrates Wall. 02565_ Xenon Bombardment Thruster destroyed. Map ----- +----------------------------------------------------+ | ?????????????????????????????????????????????????? | | ?????????????????????????????????????????????????? | | ?????????????????????????????????????????????????? | | ?????????????????????????????????????????????????? | | ?????????????????????????????????????????????????? | | ?????????????????????????????????????????????????? | | ?????????????????????????????????????????????????? | | ?????????????????????????????????????????????????? | | ?????????????????????????????????????????????????? | | ?????????????????????????????????????????????????? | | ?????????????????????????????????????????????????? | | ???????????????????????????######????????????????? | | ??????????????????????????? ????????????????? | | ??????????????????????????? ?????????????????? | | ??????????????????????????? ?????????????????? | | ??????????????????????????? ?????????????????? | | ?????????????########?????# #?????????????????? | | ?????????????? ????# #?????????????????? | | ???????????????? ????# #?????????????????? | | ????????????????? ""???# #?????????????????? | | ?????????????????? ""???/ #?????????????????? | | ???????????????????? """??# #????#####????????? | | ????????????????????? ??# #??? #????????? | | ?????????????????????? ?# #?? #????????? | | ?????????????????#######;## #? * #????????? | | ?????????????????# @# # #????????? | | ?????????????????# + / #????????? | | ?????????????????# # # #????????? | | ?????????????????# # #?????????????????? | | ?????????????????# # #?????????????????? | | ?????????????????# # #?????????????????? | | ?????????????????# " "" # #?????????????????? | | ?????????????????# "R"" # #?????????????????? | | ?????????????????# """ # #?????????????????? | | ?????????????????########## #?????????????????? | | ??????????????????????????# #?????????????????? | | ??????????????????????????# #?????????????????? | | ??????????????????????????# #?????????????????? | | ??????????????????????????# #?????????????????? | | ??????????????????????????# ########??????????? | | ??????????????????????????# ############ | | ??????????????????????????# | | ??????????????????????????# | | ??????????????????????????# | | ??????????????????????????#!!] ==! | | ??????????????????????????#!] =] ##### | | ??????????????????????????#!] =! ##### | | ??????????????????????????# / | | ??????????????????????????# ]##### | | ??????????????????????????# #???# " | +----------------------------------------------------+ Best States ------------- Heat Dissipation 49 Energy Generation 34 Energy Capacity 450 Matter Stores 350 Matter Capacity 550 Sight Range 22 Terrain Scan Range 20 Terrain Scan Density 85 ECM Strength 2 Jamming Range 16 Additional Mass Support 9 Armor Coverage 300 Phase Shifting 5 Evasion (%) 68 Targeting Accuracy 37 Melee Accuracy 6 Item Schematics ----------------- Combat Drone Bay | -6/Data Miner | Free Lgt. Regenerative Plating | -6/Data Miner | Free Cld. Nuclear Pulse Thruster | -6/Data Miner | Free Prc. Matter Filter | -6/Data Miner | Free Smartbomb Launcher | -6/Data Miner | Free Imp. Gyrokinetic Inverter | -6/Data Miner | Free Graphene Brace | -6/Data Miner | Free Hvy. Gauss Cannon | -6/Data Miner | Free Quantum Capacitor | -6/Data Miner | Free Robot Schematics ------------------ H-66 Slayer | -6/Data Miner | Free B-60 Warrior | -6/Data Miner | Free A-15 Conveyor | -6/Data Miner | Free M-30 Cleanser | -6/Data Miner | Free P-70 Sage | -6/Data Miner | Free L-41 Fighter | -6/Data Miner | Free X-72 Disruptor | -6/Data Miner | Free M-22 Extractor | -6/Data Miner | Free Fabricated ------------ Nothing Repaired ---------- Nothing Studied --------- None Alien Tech Used ----------------- None Achievements -------------- None Challenges ------------ None Game ------ Seed IntegrityPlexusShotgun Manual? 0 Play Time 00:50:49 Cumulative 39.6 hours Start 2026.06.22 @ 06:57:36 End 2026.06.22 @ 23:41:18 Sessions 3 Manual Loads 0 Difficulty Rogue Special Mode None Game No. 100 Rogue 100 Adventurer 0 Explorer 0 Win Type - Total 3 Types 3/0/0/0/0/0/0/0/0/0 Lore% 41 Gallery% 33 Achievement% 36 Wizard Run 0 Options --------- Layout 1 ASCII 0 Keyboard 0 Movement Mouse Keybinds 0 Fullscreen 1 Font 16/SmallcapsGlow Map View 50x40 Zoom Use 0% Tactical HUD 1 Map Filters NONE Filters NONE Steam SD RUN: 44eb1404-a929-4cf7-a44c-d69fe767ce0d